bitfinex-derivatives/quotes_BNBF0:USTF0_20251002
["timestamp","ask_amount","ask_price","bid_price","bid_amount"]
[1759433583339,0.54061661,1070.3,1067.5,3.5095728]
[1759433583538,0.82946651,1070.9,1067.5,3.5095728]
[1759433583740,0.54121798,1070.8,1067.5,3.5095728]
[1759433583938,0.54121798,1070.7,1067.5,3.5095728]
[1759433584138,0.54121798,1070.6,1067.6,2.07886106]
[1759433584339,0.54121798,1070.5,1067.6,2.07886106]
[1759433584639,0.54121798,1070.4,1067.6,2.07886106]
[1759433584838,0.54121798,1070.3,1067.6,2.07886106]
[1759433585043,0.82946651,1070.9,1067.6,2.07886106]
[1759433585239,0.54178879,1070.8,1067.6,2.07886106]
[1759433585439,0.54178879,1070.7,1067.6,2.07886106]
[1759433585640,0.54178879,1070.6,1067.6,2.07886106]
[1759433585840,0.54178879,1070.5,1067.6,2.07886106]
[1759433586040,0.54178879,1070.4,1067.6,2.07886106]
[1759433586240,0.54178879,1070.3,1067.9,2.07886106]
[1759433586440,0.82946651,1070.8,1067.9,2.07886106]
[1759433586744,0.54214378,1070.7,1067.9,2.07886106]
[1759433586941,0.54214378,1070.6,1067.9,2.07886106]
[1759433587141,0.54214378,1070.5,1067.9,2.07886106]
[1759433587340,0.54214378,1070.5,1067.5,4.34218829]
[1759433587341,0.54214378,1070.4,1068.0,2.07886106]
[1759433587543,0.54214378,1070.3,1068.0,2.07886106]
[1759433587740,0.54214378,1070.2,1068.0,2.07886106]
[1759433587940,0.82946651,1070.7,1068.1,2.07886106]
[1759433588145,0.54249427,1070.6,1068.1,2.07886106]
[1759433588346,0.54249427,1070.5,1068.1,2.07886106]
[1759433588543,0.54249427,1070.4,1068.1,2.07886106]
[1759433588747,0.54249427,1070.3,1068.1,2.07886106]
[1759433588944,0.54249427,1070.2,1068.1,2.07886106]
[1759433589148,0.82946651,1070.8,1068.1,2.07886106]
[1759433589350,0.54291195,1070.7,1068.0,2.07886106]
[1759433589550,0.54291195,1070.6,1068.0,2.07886106]
[1759433589749,0.54291195,1070.5,1068.0,2.07886106]
[1759433589947,0.54291195,1070.4,1068.0,2.07886106]
[1759433590246,0.54291195,1070.3,1068.0,2.07886106]
[1759433590446,0.54291195,1070.2,1068.0,2.07886106]
[1759433590651,0.82946651,1070.8,1068.0,2.07886106]
[1759433590849,0.54310621,1070.7,1068.0,2.07886106]
[1759433591051,0.82946651,1070.8,1068.0,2.07886106]
[1759433591052,0.54310621,1070.6,1068.0,2.07886106]
[1759433591252,0.54310621,1070.5,1068.0,2.07886106]
[1759433591450,0.54310621,1070.4,1068.0,2.07886106]
[1759433591648,0.54310621,1070.3,1068.0,2.07886106]
[1759433591949,0.54310621,1070.2,1068.0,2.07886106]
[1759433592157,0.82946651,1070.7,1068.0,2.07886106]
[1759433592454,0.5431003,1070.6,1068.0,2.07886106]
[1759433592754,0.5431003,1070.5,1068.0,2.07886106]
[1759433592956,0.5431003,1070.4,1068.0,2.07886106]
[1759433593256,0.5431003,1070.3,1068.0,2.07886106]
[1759433593455,0.5431003,1070.2,1068.0,2.07886106]
[1759433593656,0.82946651,1070.7,1068.0,2.07886106]
[1759433593857,0.54445141,1070.6,1067.6,2.91147655]
[1759433594060,0.54445141,1070.5,1067.6,2.91147655]
[1759433594355,0.54445141,1070.4,1067.6,2.91147655]
[1759433594560,0.54445141,1070.3,1067.5,1.43071174]
[1759433594761,0.54445141,1070.2,1067.5,1.43071174]
[1759433594957,0.54445141,1070.1,1067.5,1.43071174]
[1759433595155,0.54445141,1070.0,1067.5,1.43071174]
[1759433595359,0.82946651,1070.7,1067.5,1.43071174]
[1759433595560,0.54429957,1070.6,1067.5,1.43071174]
[1759433595758,0.54429957,1070.5,1067.5,1.43071174]
[1759433595962,0.54429957,1070.4,1067.5,1.43071174]
[1759433596159,0.54429957,1070.3,1067.5,1.43071174]
[1759433596362,0.82946651,1070.7,1067.5,1.43071174]
[1759433596363,0.54429957,1070.2,1067.5,1.43071174]
[1759433596559,0.54429957,1070.1,1067.5,1.43071174]
[1759433596762,0.54429957,1070.0,1067.5,1.43071174]
[1759433596958,0.82946651,1070.7,1067.5,1.43071174]
[1759433597163,0.54419635,1070.6,1067.5,1.43071174]
[1759433597363,0.54419635,1070.5,1067.5,1.43071174]
[1759433597562,1.24419976,1071.0,1067.5,1.43071174]
[1759433597563,0.54419635,1070.4,1067.5,1.43071174]
[1759433597762,0.54419635,1070.3,1067.5,1.43071174]
[1759433597961,0.54419635,1070.2,1067.5,1.43071174]
[1759433598165,0.54419635,1070.1,1067.5,1.43071174]
[1759433598464,0.54419635,1070.0,1067.5,1.43071174]
[1759433598764,0.54419635,1069.9,1067.5,1.43071174]
[1759433599064,0.54419635,1069.8,1067.5,1.43071174]
[1759433599264,0.82946651,1070.3,1067.6,2.07886106]
[1759433599559,0.54380776,1070.2,1067.6,2.07886106]
[1759433599764,0.54380776,1070.1,1067.6,2.07886106]
[1759433599960,0.54380776,1070.0,1067.6,2.07886106]
[1759433600165,0.54380776,1069.9,1067.6,2.07886106]
[1759433600361,0.54380776,1069.8,1067.5,1.43071174]
[1759433600575,0.82946651,1070.3,1067.5,1.43071174]
[1759433600861,0.54360602,1070.2,1067.5,1.43071174]
[1759433601060,0.54360602,1070.1,1067.5,1.43071174]
[1759433601360,0.54360602,1070.0,1067.5,1.43071174]
[1759433601564,0.54360602,1069.9,1067.5,1.43071174]
[1759433601764,0.54360602,1069.8,1067.5,1.43071174]
[1759433601964,0.82946651,1070.3,1067.5,1.43071174]
[1759433602164,0.5433667,1070.2,1067.5,1.43071174]
[1759433602364,0.5433667,1070.1,1067.5,1.43071174]
[1759433602566,0.5433667,1070.0,1067.5,1.43071174]
[1759433602763,0.5433667,1069.9,1067.5,1.43071174]
[1759433602963,0.5433667,1069.8,1067.5,1.43071174]
[1759433603165,0.82946651,1070.3,1067.5,1.43071174]
[1759433603365,0.54303569,1070.2,1067.5,1.43071174]
[1759433603562,0.54303569,1070.1,1067.5,1.43071174]
[1759433603767,0.54303569,1070.0,1067.5,1.43071174]
[1759433603964,0.54303569,1069.9,1067.5,1.43071174]
[1759433604164,0.54303569,1069.8,1067.5,1.43071174]
[1759433604367,0.82946651,1070.3,1067.5,1.43071174]
[1759433604568,0.54287579,1070.2,1067.5,1.43071174]
[1759433604768,0.54287579,1070.1,1067.5,1.43071174]
[1759433605064,0.54287579,1070.0,1067.5,1.43071174]
[1759433605269,0.54287579,1069.9,1067.5,1.43071174]
[1759433605465,0.54287579,1069.8,1067.5,1.43071174]
[1759433605669,0.82946651,1070.3,1067.5,1.43071174]
[1759433605868,0.54273238,1070.2,1067.5,1.43071174]
[1759433606071,0.54273238,1070.1,1067.5,1.43071174]
[1759433606267,0.54273238,1070.0,1067.5,1.43071174]
[1759433606470,0.54273238,1069.9,1067.5,1.43071174]
[1759433606671,0.54273238,1069.8,1067.5,1.43071174]
[1759433606870,0.82946651,1070.4,1067.5,1.43071174]
[1759433607070,0.54258014,1070.3,1067.5,1.43071174]
[1759433607270,0.54258014,1070.2,1067.5,1.43071174]
[1759433607470,0.54258014,1070.1,1067.5,1.43071174]
[1759433607771,0.54258014,1070.0,1067.5,1.43071174]
[1759433607971,0.54258014,1069.9,1067.5,1.43071174]
[1759433608271,0.54258014,1069.8,1067.5,1.43071174]
[1759433608570,0.54258014,1069.7,1067.5,1.43071174]
[1759433608768,1.001,1069.7,1067.5,1.43071174]
[1759433612674,0.54209469,1069.6,1067.5,1.43071174]
[1759433612974,0.54209469,1069.5,1067.5,1.43071174]
[1759433613171,1.001,1069.7,1067.5,1.43071174]
[1759433613474,0.54201646,1069.6,1067.5,1.43071174]
[1759433613674,0.54201646,1069.5,1067.5,1.43071174]
[1759433613971,1.001,1069.7,1067.5,1.43071174]
[1759433614174,0.54201681,1069.6,1067.5,1.43071174]
[1759433614374,0.54201681,1069.5,1067.5,1.43071174]
[1759433614670,1.001,1069.7,1067.5,1.43071174]
[1759433614970,0.54190344,1069.6,1067.5,1.43071174]
[1759433615270,0.54190344,1069.5,1067.5,1.43071174]
[1759433615474,1.001,1069.7,1067.5,1.43071174]
[1759433615668,0.54181258,1069.6,1067.5,1.43071174]
[1759433615871,0.54181258,1069.5,1067.5,1.43071174]
[1759433616073,1.001,1069.7,1067.5,1.43071174]
[1759433616371,0.54184772,1069.6,1067.5,1.43071174]
[1759433616574,0.54184772,1069.5,1067.5,1.43071174]
[1759433616772,1.001,1069.7,1067.5,1.43071174]
[1759433616971,0.54176703,1069.6,1067.5,1.43071174]
[1759433617174,0.54176703,1069.5,1067.5,1.43071174]
[1759433617470,1.001,1069.7,1067.5,1.43071174]
[1759433617675,0.54169214,1069.6,1067.5,1.43071174]
[1759433617970,0.54169214,1069.5,1067.5,1.43071174]
[1759433618273,1.001,1069.7,1067.5,1.43071174]
[1759433618473,0.54163319,1069.6,1067.5,1.43071174]
[1759433618675,0.54163319,1069.5,1067.5,1.43071174]
[1759433618874,1.001,1069.7,1067.5,1.43071174]
[1759433619075,0.54162784,1069.6,1067.5,1.43071174]
[1759433619280,0.54162784,1069.5,1067.5,1.43071174]
[1759433619574,1.001,1069.7,1067.5,1.43071174]
[1759433619776,0.54154237,1069.6,1067.5,1.43071174]
[1759433619978,1.001,1069.7,1067.5,1.43071174]
[1759433620176,0.54154374,1069.6,1067.5,1.43071174]
[1759433620380,1.001,1069.7,1067.5,1.43071174]
[1759433620576,0.5415673,1069.6,1067.5,1.43071174]
[1759433620780,1.001,1069.7,1067.5,1.43071174]
[1759433620982,0.54156988,1069.6,1067.5,1.43071174]
[1759433621282,1.001,1069.7,1067.5,1.43071174]
[1759433621478,0.54160605,1069.6,1067.5,1.43071174]
[1759433621779,1.001,1069.7,1067.5,1.43071174]
[1759433621979,0.54160605,1069.6,1067.5,1.43071174]
[1759433622182,1.001,1069.7,1067.5,1.43071174]
[1759433622482,0.5416566,1069.6,1067.5,1.43071174]
[1759433622782,1.001,1069.7,1067.5,1.43071174]
[1759433622979,0.54165694,1069.6,1067.5,1.43071174]
[1759433623282,1.001,1069.7,1067.5,1.43071174]
[1759433623476,0.54178255,1069.6,1067.5,1.43071174]
[1759433623679,0.54178458,1069.5,1067.5,1.43071174]
[1759433623980,1.001,1069.7,1067.5,1.43071174]
[1759433624283,0.54191927,1069.6,1067.5,1.43071174]
[1759433624479,0.54191927,1069.5,1067.5,1.43071174]
[1759433624681,0.54191927,1069.4,1067.5,1.43071174]
[1759433624878,1.001,1069.7,1067.5,1.43071174]
[1759433625081,0.54189589,1069.6,1067.5,1.43071174]
[1759433625283,0.54189589,1069.5,1067.5,1.43071174]
[1759433625480,0.54189589,1069.4,1067.5,1.43071174]
[1759433625684,1.001,1069.7,1067.5,1.43071174]
[1759433625985,0.5418814,1069.6,1067.5,1.43071174]
[1759433626181,0.5418814,1069.5,1067.5,1.43071174]
[1759433626386,0.5418814,1069.4,1067.5,1.43071174]
[1759433626585,1.001,1069.7,1067.5,1.43071174]
[1759433629288,1.001,1069.7,1067.5,1.43071174]
[1759433629583,0.5419025,1069.6,1067.5,1.43071174]
[1759433629783,0.5419025,1069.5,1067.5,1.43071174]
[1759433630084,0.5419025,1069.4,1067.5,1.43071174]
[1759433630284,1.001,1069.7,1067.5,1.43071174]
[1759433630488,0.54191795,1069.6,1067.5,1.43071174]
[1759433630686,0.54191795,1069.5,1067.5,1.43071174]
[1759433630884,0.54191795,1069.4,1067.5,1.43071174]
[1759433631085,1.001,1069.7,1067.5,1.43071174]
[1759433631289,0.54197227,1069.6,1067.5,1.43071174]
[1759433631488,0.54197227,1069.5,1067.5,1.43071174]
[1759433631685,1.001,1069.7,1067.3,0.16255719]
[1759433631686,0.54197227,1069.4,1067.3,0.16255719]
[1759433631889,1.001,1069.7,1067.3,0.16255719]
[1759433632190,0.5419442,1069.6,1067.3,0.16255719]
[1759433632486,0.5419442,1069.5,1067.3,0.16255719]
[1759433632688,1.001,1069.7,1067.3,0.16255719]
[1759433632886,0.54194912,1069.6,1067.3,0.16255719]
[1759433633088,0.54194912,1069.5,1067.3,0.16255719]
[1759433633285,1.001,1069.7,1067.3,0.16255719]
[1759433633485,0.54207892,1069.6,1067.3,0.16255719]
[1759433633688,1.001,1069.7,1067.3,0.16255719]
[1759433633886,0.54204145,1069.6,1067.3,0.16255719]
[1759433634090,1.001,1069.7,1067.3,0.16255719]
[1759433637188,1.001,1069.7,1067.3,2.24141825]
[1759433638492,1.001,1069.7,1067.3,0.16255719]
[1759433638692,0.82946651,1070.8,1067.3,0.16255719]
[1759433638992,0.5432585,1070.7,1067.3,0.16255719]
[1759433639188,0.5432585,1070.6,1067.3,0.16255719]
[1759433639492,0.5432585,1070.5,1067.3,0.16255719]
[1759433639692,0.5432585,1070.4,1067.3,0.16255719]
[1759433639892,0.5432585,1070.3,1067.3,0.16255719]
[1759433640089,0.5432585,1070.2,1067.3,0.16255719]
[1759433640292,0.5432585,1070.1,1067.3,0.16255719]
[1759433640490,0.5432585,1070.0,1067.3,0.16255719]
[1759433640688,0.5432585,1069.9,1067.3,0.16255719]
[1759433640889,0.82946651,1070.8,1067.3,0.16255719]
[1759433641093,0.5434961,1070.7,1067.3,0.16255719]
[1759433641290,0.5434961,1070.6,1067.3,0.16255719]
[1759433641590,0.5434961,1070.5,1067.3,0.16255719]
[1759433641788,0.5434961,1070.4,1067.3,0.16255719]
[1759433641990,0.5434961,1070.3,1067.3,0.16255719]
[1759433642192,0.5434961,1070.2,1067.3,0.16255719]
[1759433642393,0.5434961,1070.1,1067.3,0.16255719]
[1759433642689,0.5434961,1070.0,1067.3,0.16255719]
[1759433642892,0.5434961,1069.9,1067.3,0.16255719]
[1759433643092,0.82946651,1070.7,1067.3,0.16255719]
[1759433643292,0.54391758,1070.6,1067.3,0.16255719]
[1759433643490,0.54391758,1070.5,1067.3,0.16255719]
[1759433643793,0.54391758,1070.4,1067.3,0.16255719]
[1759433644094,0.54391758,1070.3,1067.4,2.07886106]
[1759433644293,0.54391758,1070.2,1067.4,2.07886106]
[1759433644493,0.54391758,1070.1,1067.4,2.07886106]
[1759433644790,0.54391758,1070.0,1067.4,2.07886106]
[1759433644988,0.54391758,1069.9,1067.4,2.07886106]
[1759433645188,0.82946651,1070.5,1067.4,2.07886106]
[1759433645392,0.54414791,1070.4,1067.4,2.07886106]
[1759433645590,0.54414791,1070.3,1067.4,2.07886106]
[1759433645793,0.54414791,1070.2,1067.4,2.07886106]
[1759433646093,0.54414791,1070.1,1067.4,2.07886106]
[1759433646390,0.54414791,1070.0,1067.4,2.07886106]
[1759433646593,0.54414791,1069.9,1067.4,2.07886106]
[1759433646893,0.82946651,1070.6,1067.4,2.07886106]
[1759433647090,0.54427344,1070.5,1067.4,2.07886106]
[1759433647289,0.54427344,1070.4,1067.4,2.07886106]
[1759433647491,0.54427344,1070.3,1067.4,2.07886106]
[1759433647790,0.54427344,1070.2,1067.4,2.07886106]
[1759433648096,0.54427344,1070.1,1067.4,2.07886106]
[1759433648298,0.54427344,1070.0,1067.4,2.07886106]
[1759433648497,0.54427344,1069.9,1067.4,2.07886106]
[1759433648792,0.82946651,1070.6,1067.4,2.07886106]
[1759433648995,0.54450177,1070.5,1067.4,2.07886106]
[1759433649295,0.54450177,1070.4,1067.4,2.07886106]
[1759433649496,0.54450177,1070.3,1067.4,2.07886106]
[1759433649696,0.54450177,1070.2,1067.4,2.07886106]
[1759433649894,0.54450177,1070.1,1067.4,2.07886106]
[1759433650094,0.54450177,1070.0,1067.4,2.07886106]
[1759433650297,0.54450177,1069.9,1067.4,2.07886106]
[1759433650498,0.82946651,1070.6,1067.4,2.07886106]
[1759433650696,0.54472118,1070.5,1067.4,2.07886106]
[1759433650896,0.54472118,1070.4,1067.4,2.07886106]
[1759433651098,0.54472118,1070.3,1067.4,2.07886106]
[1759433651396,0.54472118,1070.2,1067.5,2.07886106]
[1759433651594,0.54472118,1070.1,1067.5,2.07886106]
[1759433651799,0.54472118,1070.0,1067.5,2.07886106]
[1759433651999,0.54472118,1069.9,1067.5,2.07886106]
[1759433652202,0.82946651,1070.6,1067.5,2.07886106]
[1759433652400,0.54494347,1070.5,1067.5,2.07886106]
[1759433652600,0.54494347,1070.4,1067.5,2.07886106]
[1759433652899,0.54494347,1070.3,1067.7,2.07886106]
[1759433653100,0.54494347,1070.2,1067.7,2.07886106]
[1759433653301,0.54494347,1070.1,1067.8,2.07886106]
[1759433653500,0.82946651,1070.8,1067.8,2.07886106]
[1759433653700,0.54654343,1070.7,1067.8,2.07886106]
[1759433653898,0.54654343,1070.6,1067.8,2.07886106]
[1759433654100,0.54654343,1070.5,1067.8,2.07886106]
[1759433654401,0.54654343,1070.4,1067.8,2.07886106]
[1759433654598,0.54654343,1070.3,1067.8,2.07886106]
[1759433654902,0.54654343,1070.2,1067.8,2.07886106]
[1759433655104,0.54654343,1070.1,1067.8,2.07886106]
[1759433655303,0.82946651,1070.7,1067.8,2.07886106]
[1759433655597,0.54642742,1070.6,1067.9,2.07886106]
[1759433655800,0.54642742,1070.5,1067.9,2.07886106]
[1759433656001,0.54642742,1070.4,1067.9,2.07886106]
[1759433656200,0.54642742,1070.3,1067.9,2.07886106]
[1759433656499,0.54642742,1070.2,1068.0,2.07886106]
[1759433656704,0.54634904,1070.1,1068.0,2.07886106]
[1759433657000,0.82946651,1070.8,1067.7,2.07886106]
[1759433657303,0.54627522,1070.7,1067.7,2.07886106]
[1759433657603,0.54627522,1070.6,1067.6,2.07886106]
[1759433657797,0.54627522,1070.5,1067.6,2.07886106]
[1759433657998,0.54627522,1070.4,1067.6,2.07886106]
[1759433658199,0.54627522,1070.3,1067.6,2.07886106]
[1759433658402,0.54627522,1070.2,1067.6,2.07886106]
[1759433658602,0.54627522,1070.1,1067.5,2.07886106]
[1759433658806,0.82946651,1070.9,1067.5,2.07886106]
[1759433659006,0.54618098,1070.8,1067.5,2.07886106]
[1759433659206,0.54618098,1070.7,1067.6,2.07886106]
[1759433659405,0.54618098,1070.6,1067.6,2.07886106]
[1759433659605,0.54618098,1070.5,1067.5,2.07886106]
[1759433659902,0.54618098,1070.4,1067.5,2.07886106]
[1759433660105,0.54618098,1070.3,1067.6,2.07886106]
[1759433660302,0.54618098,1070.2,1067.6,2.07886106]
[1759433660506,0.82946651,1070.8,1067.6,2.07886106]
[1759433660809,0.54595188,1070.7,1067.7,2.07886106]
[1759433661003,0.54595188,1070.6,1067.7,2.07886106]
[1759433661208,0.54595188,1070.5,1067.7,2.07886106]
[1759433661408,0.54595188,1070.4,1067.7,2.07886106]
[1759433661609,0.54595188,1070.3,1067.7,2.07886106]
[1759433661805,0.54595188,1070.2,1067.7,2.07886106]
[1759433662009,0.82946651,1070.8,1067.7,2.07886106]
[1759433662310,0.54581935,1070.7,1067.7,2.07886106]
[1759433662605,0.54581935,1070.6,1067.7,2.07886106]
[1759433662805,0.54581935,1070.5,1067.8,2.07886106]
[1759433663009,0.82946651,1070.8,1067.8,2.07886106]
[1759433663010,0.54581935,1070.4,1067.8,2.07886106]
[1759433663205,0.54581935,1070.3,1068.0,2.07886106]
[1759433663409,0.54581935,1070.2,1068.0,2.07886106]
[1759433663607,0.82946651,1070.7,1068.0,2.07886106]
[1759433663806,0.54560002,1070.6,1068.0,2.07886106]
[1759433664105,0.54560002,1070.5,1068.0,2.07886106]
[1759433664306,0.54560002,1070.4,1068.0,2.07886106]
[1759433664506,0.54560002,1070.3,1068.0,2.07886106]
[1759433664707,0.54560002,1070.2,1068.0,2.07886106]
[1759433665010,0.82946651,1070.9,1067.6,2.07886106]
[1759433665310,0.54549918,1070.8,1067.6,2.07886106]
[1759433665506,0.54549918,1070.7,1067.6,2.07886106]
[1759433665711,0.54549918,1070.6,1067.6,2.07886106]
[1759433665911,0.54549918,1070.5,1067.6,2.07886106]
[1759433666112,0.54549918,1070.4,1067.6,2.07886106]
[1759433666410,0.54549918,1070.3,1067.6,2.07886106]
[1759433666608,0.82946651,1071.0,1067.6,2.07886106]
[1759433666810,0.54528852,1070.9,1067.6,2.07886106]
[1759433667013,0.54528852,1070.8,1067.6,2.07886106]
[1759433667310,0.54528852,1070.7,1067.6,2.07886106]
[1759433667513,0.54528852,1070.6,1067.6,2.07886106]
[1759433667810,0.54528852,1070.5,1067.6,2.07886106]
[1759433668113,0.54528852,1070.4,1067.6,2.07886106]
[1759433668413,0.54528852,1070.3,1067.6,2.07886106]
[1759433668609,0.82946651,1071.0,1067.6,2.07886106]
[1759433668908,0.54502862,1070.9,1067.5,2.07886106]
[1759433669109,0.54502862,1070.8,1067.5,2.07886106]
[1759433669412,0.54502862,1070.7,1067.7,2.07886106]
[1759433669613,0.54502862,1070.6,1067.7,2.07886106]
[1759433669809,0.82946651,1071.1,1067.7,2.07886106]
[1759433669810,0.54502862,1070.5,1067.7,2.07886106]
[1759433670014,0.54502862,1070.4,1068.2,2.07886106]
[1759433670310,0.82946651,1071.2,1068.2,2.07886106]
[1759433670508,0.54451404,1071.1,1067.8,2.07886106]
[1759433670711,0.54451404,1071.0,1067.8,2.07886106]
[1759433671009,0.54451404,1070.9,1067.8,2.07886106]
[1759433671214,0.54451404,1070.8,1067.8,2.07886106]
[1759433671409,0.16252227,1072.2,1067.8,2.07886106]
[1759433671410,0.54451404,1070.7,1067.8,2.07886106]
[1759433671711,0.82946651,1071.4,1067.8,2.07886106]
[1759433671911,0.54420813,1071.3,1067.8,2.07886106]
[1759433672115,0.54420813,1071.2,1067.8,2.07886106]
[1759433672415,0.54420813,1071.1,1067.8,2.07886106]
[1759433672612,0.54420813,1071.0,1067.9,2.07886106]
[1759433672814,0.54420813,1070.9,1067.9,2.07886106]
[1759433673013,0.54420813,1070.8,1067.9,2.07886106]
[1759433673212,0.54420813,1070.7,1067.9,2.07886106]
[1759433673412,0.82946651,1071.4,1067.9,2.07886106]
[1759433673612,0.54368765,1071.3,1067.9,2.07886106]
[1759433673812,0.54368765,1071.2,1067.9,2.07886106]
[1759433674017,0.54368765,1071.1,1067.9,2.07886106]
[1759433674217,0.54368765,1071.0,1067.9,2.07886106]
[1759433674512,0.54368765,1070.9,1067.9,2.07886106]
[1759433674718,0.54368765,1070.8,1067.8,2.07886106]
[1759433675017,0.54368765,1070.7,1067.8,2.07886106]
[1759433675213,0.82946651,1071.4,1067.7,2.07886106]
[1759433675417,0.5433119,1071.3,1067.7,2.07886106]
[1759433675717,0.5433119,1071.2,1067.8,2.07886106]
[1759433676012,0.5433119,1071.1,1067.8,2.07886106]
[1759433676218,0.5433119,1071.0,1067.6,2.07886106]
[1759433676416,0.5433119,1070.9,1067.6,2.07886106]
[1759433676612,0.5433119,1070.8,1067.6,2.07886106]
[1759433676816,0.5433119,1070.7,1067.5,2.07886106]
[1759433677013,0.82946651,1071.5,1067.5,2.07886106]
[1759433677217,0.54315974,1071.4,1067.5,2.07886106]
[1759433677515,0.54315974,1071.3,1067.5,2.07886106]
[1759433677717,0.54315974,1071.2,1067.5,2.07886106]
[1759433678017,0.54315974,1071.1,1067.5,2.07886106]
[1759433678316,0.54315974,1071.0,1067.5,2.07886106]
[1759433678521,0.54315974,1070.9,1067.5,2.07886106]
[1759433678820,0.54315974,1070.8,1067.6,2.07886106]
[1759433679020,0.54315974,1070.7,1067.6,2.07886106]
[1759433679322,0.82946651,1071.5,1067.6,2.07886106]
[1759433679519,0.54284615,1071.4,1067.6,2.07886106]
[1759433679721,0.54284615,1071.3,1067.6,2.07886106]
[1759433679920,0.54284615,1071.2,1067.6,2.07886106]
[1759433680217,0.54284615,1071.1,1067.6,2.07886106]
[1759433680420,0.54284615,1071.0,1067.6,2.07886106]
[1759433680620,0.54284615,1070.9,1067.6,2.07886106]
[1759433680916,0.54284615,1070.8,1067.7,2.07886106]
[1759433681117,0.82946651,1071.4,1067.7,2.07886106]
[1759433681418,1.37211871,1071.3,1067.7,2.07886106]
[1759433681620,0.5426522,1071.2,1067.7,2.07886106]
[1759433681821,0.5426522,1071.1,1067.8,2.07886106]
[1759433682018,0.5426522,1071.0,1067.8,2.07886106]
[1759433682222,0.5426522,1070.9,1067.8,2.07886106]
[1759433682522,0.5426522,1070.8,1067.8,2.07886106]
[1759433682722,0.82946651,1071.3,1067.8,2.07886106]
[1759433682920,0.5425837,1071.2,1067.8,2.07886106]
[1759433683120,0.5425837,1071.1,1067.8,2.07886106]
[1759433683319,0.5425837,1071.0,1067.9,2.07886106]
[1759433683519,0.5425837,1070.9,1067.9,2.07886106]
[1759433683819,0.5425837,1070.8,1067.9,2.07886106]
[1759433684020,0.82946651,1071.4,1067.5,2.07886106]
[1759433684220,0.54369604,1071.3,1067.5,2.07886106]
[1759433684424,0.54369604,1071.2,1068.2,2.07886106]
[1759433684624,0.82946651,1071.4,1068.2,2.07886106]
[1759433684625,0.54369604,1071.1,1068.2,2.07886106]
[1759433684822,0.54369604,1071.0,1068.2,2.07886106]
[1759433685020,0.54369604,1070.9,1068.2,2.07886106]
[1759433685223,0.82946651,1071.5,1068.2,2.07886106]
[1759433685422,1.37301666,1071.4,1068.1,2.07886106]
[1759433685622,0.54355015,1071.3,1068.1,2.07886106]
[1759433685827,0.54355015,1071.2,1068.1,2.07886106]
[1759433686024,0.54355015,1071.1,1068.1,2.07886106]
[1759433686225,0.54355015,1071.0,1068.1,2.07886106]
[1759433686428,0.54355015,1070.9,1067.7,2.91147655]
[1759433686626,0.82946651,1071.8,1067.7,2.91147655]
[1759433686824,0.54356982,1071.7,1067.7,2.91147655]
[1759433687127,0.54356982,1071.6,1067.3,0.16255719]
[1759433687324,0.54356982,1071.5,1067.3,0.16255719]
[1759433687528,0.54356982,1071.4,1067.3,0.16255719]
[1759433687730,0.54356982,1071.3,1067.3,0.16255719]
[1759433687929,0.54356982,1071.2,1067.3,0.16255719]
[1759433688127,0.54356982,1071.1,1067.3,0.16255719]
[1759433688329,0.54356982,1071.0,1067.3,0.16255719]
[1759433688630,0.54356982,1070.9,1067.3,0.16255719]
[1759433688931,0.82946651,1071.8,1067.3,0.16255719]
[1759433689232,0.54364786,1071.7,1067.3,0.16255719]
[1759433689432,0.54364786,1071.6,1067.3,0.16255719]
[1759433689633,0.54364786,1071.5,1067.3,0.16255719]
[1759433689932,0.82946651,1071.8,1067.3,0.16255719]
[1759433689933,0.54364786,1071.4,1067.3,0.16255719]
[1759433690233,0.54364786,1071.3,1067.5,2.07886106]
[1759433690434,0.54364786,1071.2,1067.5,2.07886106]
[1759433690634,0.54364786,1071.1,1067.6,2.07886106]
[1759433690835,0.54364786,1071.0,1067.6,2.07886106]
[1759433691035,0.54364786,1070.9,1067.6,2.07886106]
[1759433691236,0.82946651,1071.6,1067.6,2.07886106]
[1759433691535,0.54393486,1071.5,1067.6,2.07886106]
[1759433691829,0.54393486,1071.4,1067.6,2.07886106]
[1759433692031,0.82946651,1071.6,1067.6,2.07886106]
[1759433692032,0.54393486,1071.3,1067.6,2.07886106]
[1759433692334,0.54393486,1071.2,1067.6,2.07886106]
[1759433692635,0.54393486,1071.1,1067.6,2.07886106]
[1759433692835,0.54393486,1071.0,1067.7,2.07886106]
[1759433693035,0.54393486,1070.9,1067.7,2.07886106]
[1759433693332,0.82946651,1071.6,1067.6,2.07886106]
[1759433693532,0.54424709,1071.5,1067.6,2.07886106]
[1759433693736,0.54424709,1071.4,1067.7,2.07886106]
[1759433694033,0.54424709,1071.3,1067.7,2.07886106]
[1759433694237,0.54424709,1071.2,1067.7,2.07886106]
[1759433694535,0.54424709,1071.1,1067.7,2.07886106]
[1759433694732,0.54424709,1071.0,1067.7,2.07886106]
[1759433695032,0.54424709,1071.0,1067.3,0.16255719]
[1759433695033,0.54424709,1070.9,1067.8,2.07886106]
[1759433695335,0.82946651,1071.6,1067.8,2.07886106]
[1759433695531,0.54432781,1071.5,1067.8,2.07886106]
[1759433695736,0.54432781,1071.4,1067.8,2.07886106]
[1759433696036,0.54432781,1071.3,1067.8,2.07886106]
[1759433696234,0.54432781,1071.2,1067.8,2.07886106]
[1759433696433,0.82946651,1071.6,1067.8,2.07886106]
[1759433696434,0.54432781,1071.1,1067.8,2.07886106]
[1759433696633,0.54432781,1071.0,1067.8,2.07886106]
[1759433696935,0.54432781,1070.9,1067.8,2.07886106]
[1759433697134,0.82946651,1071.6,1067.8,2.07886106]
[1759433697432,0.54433869,1071.5,1067.8,2.07886106]
[1759433697634,0.54433869,1071.4,1067.8,2.07886106]
[1759433697937,0.54433869,1071.3,1067.8,2.07886106]
[1759433698136,0.54433869,1071.2,1067.8,2.07886106]
[1759433698437,0.54433869,1071.1,1068.1,2.07886106]
[1759433698737,0.82946651,1071.7,1068.1,2.07886106]
[1759433698938,0.54427071,1071.6,1068.1,2.07886106]
[1759433699134,0.54427071,1071.5,1068.1,2.07886106]
[1759433699335,0.54427071,1071.4,1068.1,2.07886106]
[1759433699639,0.54427071,1071.3,1068.0,2.07886106]
[1759433699939,0.54427071,1071.2,1068.0,2.07886106]
[1759433700234,0.54427071,1071.1,1068.0,2.07886106]
[1759433700439,0.82946651,1071.8,1067.9,2.07886106]
[1759433700736,0.54423201,1071.7,1067.9,2.07886106]
[1759433700939,0.54423201,1071.6,1067.9,2.07886106]
[1759433701235,0.82946651,1071.8,1067.9,2.07886106]
[1759433701236,0.54423201,1071.5,1067.9,2.07886106]
[1759433701439,0.54423201,1071.4,1067.9,2.07886106]
[1759433701736,0.54423201,1071.3,1068.0,2.07886106]
[1759433701939,0.54423201,1071.2,1068.0,2.07886106]
[1759433702139,0.54423201,1071.1,1068.0,2.07886106]
[1759433702335,0.82946651,1071.8,1068.0,2.07886106]
[1759433702633,0.5442067,1071.7,1068.0,2.07886106]
[1759433702936,0.5442067,1071.6,1068.0,2.07886106]
[1759433703236,0.5442067,1071.5,1068.0,2.07886106]